{"text_format":"1","workbook":"xlsx","n_sheets":14,"sheets":["Cover","Info","Results","E01","E02","E03","E04","E05","E06","E07","E08","E09","E10","About"],"not_rendered":{"charts":11,"images":37,"macros":1,"external_links":0,"defined_names":15,"comments":0,"pivot_tables":0},"unopened":[],"bounds":{"document_bytes":16777216,"sheet_cells":100000,"rows_first":2000,"rows_last":500,"rows_between":2000,"halvings":0,"cell_chars":16384,"cell_head_chars":4096},"cells_cut":0,"cells_raw":0,"read":"whole","date_system":"1900"}

{"sheet":"Cover","index":0,"n_rows":0,"n_cols":0,"rows_kept":0,"cut":false,"hidden":false,"merged":[]}

{"sheet":"Info","index":1,"n_rows":39,"n_cols":4,"rows_kept":39,"cut":false,"hidden":false,"merged":[[38,1,38,3],[39,1,39,3],[2,1,2,2],[3,1,3,2],[4,1,4,2],[5,1,5,2],[6,1,6,2],[37,1,37,3],[31,1,31,2],[32,1,32,2],[33,1,33,2],[34,1,34,2],[35,1,35,2]]}
[]
[]
[null,"Penilaian ini",null,"Jawaban"]
[null,"Nama Kabupaten/Kota"]
[null,"Tipe kota (kabupaten, metropolitan, dll)"]
[null,"Negara"]
[null,"Tanggal penilaian"]
[]
[null,"Profil Kota (Wajib Diisi)","Jawaban","Sumber Data"]
[null,"Jabatan tertinggi Kepala Daerah (misalnya Walikota atau Bupati)"]
[null,"Populas:   "]
[null,"Luas Wilayah dalam kilometer persegi:"]
[null,"Kepadatan penduduk (penduduk per kilometer persegi): "]
[null,"Populasi anak muda (usia 15-24) (%):"]
[null,"Lansia (65+) (%):"]
[null,"Keluarga yang dikepalai oleh perempuan (janda):"]
[null,"Jumlah masyarakat dengan kemampuan baca tulis (% literate population):"]
[null,"Tingkat kemiskinan (% population not in poverty):"]
[null,"Rerata Pendapatan Per Keluarga (USD):"]
[null,"Masyarakat yang bukan WNI (%):"]
[null,"Risiko yang sering terjadi (jenis bencana): "]
[null,"Risiko yang paling merugikan (jenis bencana): "]
[]
[null,"Profil Kota (Tidak Wajib Diisi)","Jawaban","Sumber Data"]
[null,"Jumlah Seluruh Kepala Keluarga: "]
[null,"Jumlah Orang per Unit:"]
[null,"Biaya Hidup (USD):"]
[null,"GDP Negara per capita (USD)"]
[null,"Koefisien Ginit:"]
[null,"Produk kabupaten per kapita (USD):"]
[]
[null,"Tim Pengurangan Risiko dan Pengurangan Risiko Bencana Pemerintah Daerah",null,"Jawaban"]
[null,"Nama penilaian orang terkemuka:"]
[null,"Organization: "]
[null,"Detail kontak"]
[null,"Kesediaan untuk berbagi hasil atau digunakan sebagai studi kasus oleh UNDRR dan mitra:"]
[]
[null,"Informasi Pihak Terkait (Pemangku Kepentingan)"]
[null,"Silahkan tulis seluruh Instansi/Pihak Terkait yang terlibat dalam Penilaian ini."]

{"sheet":"Results","index":2,"n_rows":221,"n_cols":13,"rows_kept":221,"cut":false,"hidden":false,"merged":[[131,2,131,5],[35,2,35,5],[36,2,36,5],[37,2,37,5],[123,2,123,5],[124,2,124,5],[125,2,125,5],[47,2,47,5],[48,2,48,5],[49,2,49,5],[50,2,50,5],[126,2,126,5],[127,2,127,5],[128,2,128,5],[129,2,129,5],[130,2,130,5],[51,2,51,5],[61,2,61,5],[62,2,62,5],[63,2,63,5],[64,2,64,5],[89,2,89,5],[85,1,85,6],[74,2,74,5],[75,2,75,5],[76,2,76,5],[77,2,77,5],[87,2,87,5],[88,2,88,5],[111,2,111,5],[98,2,98,5],[94,1,94,6],[96,2,96,5],[97,2,97,5],[106,1,106,6],[108,2,108,5],[109,2,109,5],[110,2,110,5],[99,2,99,5],[100,2,100,5],[101,2,101,5],[158,1,158,3],[134,1,134,6],[136,2,136,5],[137,2,137,5],[138,2,138,5],[139,2,139,5],[140,2,140,5],[141,2,141,5],[142,2,142,5],[146,1,146,6],[148,2,148,5],[149,2,149,5]]}
[]
[]
[]
[]
[]
[]
[]
[]
[]
[]
[]
[]
[]
[]
[]
[]
[]
[]
[]
[]
[]
[]
[]
[]
[]
[]
[]
[]
[]
[]
[]
[]
[]
[null,"LANGKAH MENDASAR 1: Pengorganisasian untuk Ketangguhan Bencana"]
[]
[null,{"$f":"C175","v":"P1.1"},"Penyusunan Perencanaan",null,null,null,{"$f":"F175","v":0}]
[null,{"$f":"C176","v":"P1.2"},"Organisasi, Koordinasi, dan Partisipasi",null,null,null,{"$f":"F176","v":0}]
[null,"P1.3","Integrasi",null,null,null,0]
[]
[]
[]
[]
[]
[]
[]
[null,"LANGKAH MENDASAR 2: Identifikasi, Memahami dan Menggunakan Skenario Risiko Saat Ini & Mendatang"]
[]
[null,{"$f":"C178","v":"P2.1"},"Kajian Ancaman",null,null,null,{"$f":"F178","v":0}]
[null,{"$f":"C179","v":"P2.2"},"Pengetahuan tentang Infrastruktur Penting",null,null,null,{"$f":"F179","v":0}]
[null,"P2.3","Keterpaparan dan Kerentanan",null,null,null,0]
[null,"P2.4","Rantai Kegagalan",null,null,null,0]
[null,"P2.5","Pembaruan informasi skenario, risiko, kerentanan dan paparan",null,null,null,0]
[]
[]
[]
[]
[]
[]
[]
[null,"LANGKAH MENDASAR 3: Memperkuat Kemampuan Keuangan untuk Ketangguhan Bencana"]
[]
[null,{"$f":"C183","v":"P3.1"},"Pengetahuan tentang Pendekatan untuk Menarik Investasi Baru ke dalam Kota untuk Pengurangan Risiko Bencana",null,null,null,{"$f":"F183","v":0}]
[null,{"$f":"C184","v":"P3.2"},"Rencana Keuangan dan Anggaran untuk Ketahanan, termasuk Dana untuk Rencana Kontijensi",null,null,null,{"$f":"F184","v":0}]
[null,"P3.3","Asuransi",null,null,null,0]
[null,"P3.4","Insentif dan pembiayaan untuk dunia usaha, organisasi masyarakat dan masyarakat",null,null,null,0]
[]
[]
[]
[]
[]
[]
[]
[null,"LANGKAH MENDASAR 4: Pembangunan dan Rancangan Kota yang Tangguh Bencana"]
[]
[null,{"$f":"C187","v":"P4.1"},"Zonasi Penggunaan Ruang",null,null,null,{"$f":"F187","v":0}]
[null,{"$f":"C188","v":"P4.2"},"Pengembangan Wilayah Perkotaan Baru",null,null,null,{"$f":"F188","v":0}]
[null,"P4.3","Peraturan dan Standar Bangunan",null,null,null,0]
[null,"P4.4","Penerapan Zonasi untuk Peraturan dan Standar Bangunan",null,null,null,0]
[]
[]
[]
[]
[]
[]
[]
[null,"LANGKAH MENDASAR 5: Kawasan Penyangga dan Jasa-jasa Ekosistem"]
[]
[null,{"$f":"C191","v":"P5.1"},"Kesadaran dan Jasa Layanan/Fungsi Ekosistem",null,null,null,{"$f":"F191","v":0}]
[null,{"$f":"C192","v":"P5.2"},"Pengintegrasian infrastruktur hijau dan biru ke dalam kebijakan dan proyek kota",null,null,null,{"$f":"F192","v":0}]
[null,{"$f":"C193","v":"P5.3"},"Permasalahan Lingkungan Lintas Batas",null,null,null,{"$f":"F193","v":0}]
[]
[]
[]
[]
[null,"LANGKAH MENDASAR 6: Penguatan Kapasitas Kelembagaan/Institusi untuk Ketangguhan Bencana"]
[]
[null,{"$f":"C194","v":"P6.1"},"Keterampilan dan Pengalaman",null,null,null,{"$f":"F194","v":0}]
[null,{"$f":"C195","v":"P6.2"},"Pendidikan dan Kesadaran Masyarakat",null,null,null,{"$f":"F195","v":0}]
[null,"P6.3","Pengumpulan, Publikasi, dan Penyebaran Data",null,null,null,0]
[null,"P6.4","Pelaksanaan Pelatihan",null,null,null,0]
[null,"P6.5","Bahasa",null,null,null,0]
[null,"P6.6","Belajar dari Pihak Lain",null,null,null,0]
[]
[]
[]
[]
[null,"LANGKAH MENDASAR 7: Pemahaman dan Peningkatan Kapasitas Sosial untuk Ketangguhan"]
[]
[null,{"$f":"C200","v":"P7.1"},"Organisasi Masyarakat atau Akar Rumput",null,null,null,{"$f":"F200","v":0}]
[null,{"$f":"C201","v":"P7.2"},"Jaringan Sosial",null,null,null,{"$f":"F201","v":0}]
[null,"P7.3","Sektor Swasta/Pemilik Usaha",null,null,null,0]
[null,"P7.4","Teknik-Teknik Pelibatan Masyarakat",null,null,null,0]
[]
[]
[]
[]
[]
[]
[]
[]
[]
[null,"LANGKAH MENDASAR 8: Peningkatan Ketangguhan Infrastruktur"]
[]
[null,{"$f":"C204","v":"P8.1"},"Infrastruktur Pelindung Penting",null,null,null,{"$f":"F204","v":0}]
[null,{"$f":"C205","v":"P8.2"},"Infrastruktur Pelindung",null,null,null,{"$f":"F205","v":0}]
[null,"P8.3","Air dan Sanitasi",null,null,null,0]
[null,"P8.4","Energi",null,null,null,0]
[null,"P8.5","Transportasi",null,null,null,0]
[null,"P8.6","Telekomunikasi",null,null,null,0]
[null,"P8.7","Layanan Kesehatan",null,null,null,0]
[null,"P8.8","Fasilitas Pendidikan",null,null,null,0]
[null,{"$f":"C212","v":"P8.9"},"Aset Reaksi Cepat / Respinden Pertama",null,null,null,0]
[]
[]
[null,"LANGKAH MENDASAR 9: Memastikan Respon Bencana yang Efektif"]
[]
[null,{"$f":"C213","v":"P9.1"},"Peringatan Dini",null,null,null,{"$f":"F213","v":0}]
[null,{"$f":"C214","v":"P9.2"},"Rencana Respon Kejadian Bencana",null,null,null,{"$f":"F214","v":0}]
[null,"P9.3","Kebutuhan Personel",null,null,null,0]
[null,"P9.4","Kebutuhan Peralatan dan Suplai Penanganan Bencana",null,null,null,0]
[null,"P9.5","Makanan, tempat penampungan, bahan pokok, dan suplai bahan bakar",null,null,null,0]
[null,"P9.6","Keterpaduan dan kerjasama antar lembaga",null,null,null,0]
[null,"P9.7","Simulasi / Gladi",null,null,null,{"$f":"F219","v":0}]
[]
[]
[]
[null,"LANGKAH MENDASAR 10: Memastikan Respon Bencana yang Efektif"]
[]
[null,{"$f":"C220","v":"P10.1"},"Rencana Pemulihan Pasca Bencana (Pra Bencana)",null,null,null,{"$f":"F220","v":0}]
[null,{"$f":"C221","v":"P10.2"},"Pelajaran yang Bisa Dipetik/Siklus Pembelajaran",null,null,null,{"$f":"F221","v":0}]
[]
[]
[]
[]
[]
[]
[]
[]
[null,{"$f":"TODAY()","v":"2024-03-21"}]
[]
[]
[null,null,"Label","Name",null,"Essential","TotalScore","MaxScore","Label"]
[null,null,"S1","1.   Organise for Disaster Resilience",null,"E1",{"$f":"SUMIFS($F$175:$F$1154,$B$175:$B$1154,F163)","v":0},{"$f":"COUNTIFS($B$175:$B$221,F163)*3","v":9},"01",null,{"$f":"SUM(G163:G172)","v":0},{"$f":"K163/K164","v":0},{"$f":"CONCATENATE(\"The overall score for this assessment is \",SUM(G163:G172),\" / \",SUM(H163:H172))","v":"The overall score for this assessment is 0 / 141"}]
[null,null,"S2","2.   Identify, Understand and Use Current and Future Risk Scenarios",null,"E2",0,15,"02",null,{"$f":"SUM(H163:H172)","v":141},{"$f":"1-L163","v":1}]
[null,null,"S3","3.   Strengthen Financial Capacity for Resilience",null,"E3",0,12,"03"]
[null,null,"S4","4.   Pursue Resilient Urban Development and Design",null,"E4",0,12,"04"]
[null,null,"S5","5.   Safeguard Natural Buffers to Enhance Ecosystems’ Protective Functions",null,"E5",0,9,"05"]
[null,null,"S6","6.   Strengthen Institutional Capacity for Resilience",null,"E6",0,18,"06"]
[null,null,"S7","7.   Understand and Strengthen Societal Capacity for Resilience",null,"E7",0,12,"07"]
[null,null,"S8","8.   Increase Infrastructure Resilience",null,"E8",0,27,"08"]
[null,null,"S9","9.   Ensure Effective Disaster Response",null,"E9",0,21,"09"]
[null,null,"S10","10. Expedite Recovery and Build Back Better",null,"E10",0,6,"10"]
[]
[null,"Section","Ref",null,null,"SelectedScore","ThisScore"]
[null,"E1","P1.1",null,null,{"$f":"IF(G175=\"\",0,IF(G175=0,0,4-G175))","v":0},{"$f":"'E01'!$E$7","v":0}]
[null,"E1","P1.2",null,null,{"$f":"IF(G176=\"\",0,IF(G176=0,0,4-G176))","v":0},{"$f":"'E01'!$E$18","v":0}]
[null,"E1","P1.3",null,null,0,{"$f":"'E01'!$E$29","v":0}]
[null,"E2","P2.1",null,null,0,{"$f":"'E02'!$E$7","v":0}]
[null,"E2","P2.2",null,null,0,{"$f":"'E02'!$E$18","v":0}]
[null,"E2","P2.3",null,null,0,{"$f":"'E02'!$E$29","v":0}]
[null,"E2","P2.4",null,null,0,{"$f":"'E02'!$E$40","v":0}]
[null,"E2","P2.5",null,null,0,{"$f":"'E02'!$E$51","v":0}]
[null,"E3","P3.1",null,null,0,{"$f":"'E03'!$E$7","v":0}]
[null,"E3","P3.2",null,null,0,{"$f":"'E03'!$E$18","v":0}]
[null,"E3","P3.3",null,null,0,{"$f":"'E03'!$E$29","v":0}]
[null,"E3","P3.4",null,null,0,{"$f":"'E03'!$E$40","v":0}]
[null,"E4","P4.1",null,null,0,{"$f":"'E04'!$E$7","v":0}]
[null,"E4","P4.2",null,null,0,{"$f":"'E04'!$E$18","v":0}]
[null,"E4","P4.3",null,null,0,{"$f":"'E04'!$E$18","v":0}]
[null,"E4","P4.4",null,null,0,{"$f":"'E04'!$E$40","v":0}]
[null,"E5","P5.1",null,null,0,{"$f":"'E05'!$E$7","v":0}]
[null,"E5","P5.2",null,null,0,{"$f":"'E05'!$E$18","v":0}]
[null,"E5","P5.3",null,null,0,{"$f":"'E05'!$E$29","v":0}]
[null,"E6","P6.1",null,null,0,{"$f":"'E06'!$E$7","v":0}]
[null,"E6","P6.2",null,null,0,{"$f":"'E06'!$E$18","v":0}]
[null,"E6","P6.3",null,null,0,{"$f":"'E06'!$E$29","v":0}]
[null,"E6","P6.4",null,null,0,{"$f":"'E06'!$E$40","v":0}]
[null,"E6","P6.5",null,null,0,{"$f":"'E06'!$E$51","v":0}]
[null,"E6","P6.6",null,null,0,{"$f":"'E06'!$E$62","v":0}]
[null,"E7","P7.1",null,null,0,{"$f":"'E07'!$E$7","v":0}]
[null,"E7","P7.2",null,null,0,{"$f":"'E07'!$E$18","v":0}]
[null,"E7","P7.3",null,null,0,{"$f":"'E07'!$E$29","v":0}]
[null,"E7","P7.4",null,null,0,{"$f":"'E07'!$E$40","v":0}]
[null,"E8","P8.1",null,null,0,{"$f":"'E08'!E7","v":0}]
[null,"E8","P8.2",null,null,0,{"$f":"'E08'!E18","v":0}]
[null,"E8","P8.3",null,null,0,{"$f":"'E08'!E29","v":0}]
[null,"E8","P8.4",null,null,0,{"$f":"'E08'!E40","v":0}]
[null,"E8","P8.5",null,null,0,{"$f":"'E08'!E51","v":0}]
[null,"E8","P8.6",null,null,0,{"$f":"'E08'!E62","v":0}]
[null,"E8","P8.7",null,null,0,{"$f":"'E08'!E73","v":0}]
[null,"E8","P8.8",null,null,0,{"$f":"'E08'!E84","v":0}]
[null,"E8","P8.9",null,null,0,{"$f":"'E08'!E95","v":0}]
[null,"E9","P9.1",null,null,0,{"$f":"'E09'!$E$7","v":0}]
[null,"E9","P9.2",null,null,0,{"$f":"'E09'!$E$18","v":0}]
[null,"E9","P9.3",null,null,0,{"$f":"'E09'!$E$29","v":0}]
[null,"E9","P9.4",null,null,0,{"$f":"'E09'!$E$40","v":0}]
[null,"E9","P9.5",null,null,0,{"$f":"'E09'!$E$51","v":0}]
[null,"E9","P9.6",null,null,0,{"$f":"'E09'!$E$62","v":0}]
[null,"E9","P9.7",null,null,0,{"$f":"'E09'!$E$73","v":0}]
[null,"E10","P10.1",null,null,0,{"$f":"'E10'!$E$7","v":0}]
[null,"E10","P10.2",null,"Do post-event assessment processes incorporate failure analyses and the ability to capture lessons learned that then feed into design and delivery of rebuilding projects?",0,{"$f":"'E10'!$E$18","v":0}]

{"sheet":"E01","index":3,"n_rows":33,"n_cols":6,"rows_kept":33,"cut":false,"hidden":false,"merged":[[16,2,16,3],[4,2,4,3],[3,2,3,3],[5,2,5,3],[6,2,9,3],[14,2,14,3],[15,2,15,3],[17,2,20,3],[25,2,25,3],[26,2,26,3],[27,2,27,3],[28,2,31,3]]}
[]
[]
[null,"P1.1 - Penyusunan Perencanaan"]
[null,"Pertanyaan","Penjelasan"]
[]
[null,"Jawaban","Bukti Verifikasi"]
[null,null,null,null,null,{"$f":"IF(E7=1,TRUE,FALSE)","v":false}]
[null,null,null,null,null,{"$f":"IF(E7=2,TRUE,FALSE)","v":false}]
[null,null,null,null,null,{"$f":"IF(E7=3,TRUE,FALSE)","v":false}]
[null,null,null,null,null,{"$f":"IF(E7=4,TRUE,FALSE)","v":false}]
[null,"Rencana Tindak Lanjut","Entitas yang bertanggung jawab","Durasi waktu"]
[]
[]
[null,"P1.2 - Organisasi, Koordinasi, dan Partisipasi"]
[null,"Pertanyaan","Penjelasan"]
[]
[null,"Jawaban","Bukti Verifikasi"]
[null,null,null,null,null,{"$f":"IF(E18=1,TRUE,FALSE)","v":false}]
[null,null,null,null,null,{"$f":"IF(E18=2,TRUE,FALSE)","v":false}]
[null,null,null,null,null,{"$f":"IF(E18=3,TRUE,FALSE)","v":false}]
[null,null,null,null,null,{"$f":"IF(E18=4,TRUE,FALSE)","v":false}]
[null,"Rencana Tindak Lanjut","Entitas yang bertanggung jawab","Durasi waktu"]
[]
[]
[null,"P1.3 - Integrasi"]
[null,"Pertanyaan","Penjelasan"]
[]
[null,"Jawaban","Bukti Verifikasi"]
[null,null,null,null,null,{"$f":"IF(E29=1,TRUE,FALSE)","v":false}]
[null,null,null,null,null,{"$f":"IF(E29=2,TRUE,FALSE)","v":false}]
[null,null,null,null,null,{"$f":"IF(E29=3,TRUE,FALSE)","v":false}]
[null,null,null,null,null,{"$f":"IF(E29=4,TRUE,FALSE)","v":false}]
[null,"Rencana Tindak Lanjut","Entitas yang bertanggung jawab","Durasi waktu"]

{"sheet":"E02","index":4,"n_rows":55,"n_cols":6,"rows_kept":55,"cut":false,"hidden":false,"merged":[[48,2,48,3],[49,2,49,3],[50,2,53,3],[14,2,14,3],[15,2,15,3],[36,2,36,3],[37,2,37,3],[38,2,38,3],[39,2,42,3],[16,2,16,3],[17,2,20,3],[25,2,25,3],[26,2,26,3],[27,2,27,3],[28,2,31,3],[3,2,3,3],[4,2,4,3],[5,2,5,3],[6,2,9,3],[47,2,47,3]]}
[]
[]
[null,"P2.1 - Kajian Ancaman"]
[null,"Pertanyaan","Penjelasan"]
[]
[null,"Jawaban","Bukti Verifikasi"]
[null,null,null,null,null,{"$f":"IF(E7=1,TRUE,FALSE)","v":false}]
[null,null,null,null,null,{"$f":"IF(E7=2,TRUE,FALSE)","v":false}]
[null,null,null,null,null,{"$f":"IF(E7=3,TRUE,FALSE)","v":false}]
[null,null,null,null,null,{"$f":"IF(E7=4,TRUE,FALSE)","v":false}]
[null,"Rencana Tindak Lanjut","Entitas yang bertanggung jawab","Durasi waktu"]
[]
[]
[null,"P2.2 - Pengetahuan tentang Infrastruktur Penting"]
[null,"Pertanyaan","Penjelasan"]
[]
[null,"Jawaban","Bukti Verifikasi"]
[null,null,null,null,null,{"$f":"IF(E18=1,TRUE,FALSE)","v":false}]
[null,null,null,null,null,{"$f":"IF(E18=2,TRUE,FALSE)","v":false}]
[null,null,null,null,null,{"$f":"IF(E18=3,TRUE,FALSE)","v":false}]
[null,null,null,null,null,{"$f":"IF(E18=4,TRUE,FALSE)","v":false}]
[null,"Rencana Tindak Lanjut","Entitas yang bertanggung jawab","Durasi waktu"]
[]
[]
[null,"P2.3 - Keterpaparan dan Kerentanan"]
[null,"Pertanyaan","Penjelasan"]
[]
[null,"Jawaban","Bukti Verifikasi"]
[null,null,null,null,null,{"$f":"IF(E29=1,TRUE,FALSE)","v":false}]
[null,null,null,null,null,{"$f":"IF(E29=2,TRUE,FALSE)","v":false}]
[null,null,null,null,null,{"$f":"IF(E29=3,TRUE,FALSE)","v":false}]
[null,null,null,null,null,{"$f":"IF(E29=4,TRUE,FALSE)","v":false}]
[null,"Rencana Tindak Lanjut","Entitas yang bertanggung jawab","Durasi waktu"]
[]
[]
[null,"P2.4 - Rantai Kegagalan"]
[null,"Pertanyaan","Penjelasan"]
[]
[null,"Jawaban","Bukti Verifikasi"]
[null,null,null,null,null,{"$f":"IF(E40=1,TRUE,FALSE)","v":false}]
[null,null,null,null,null,{"$f":"IF(E40=2,TRUE,FALSE)","v":false}]
[null,null,null,null,null,{"$f":"IF(E40=3,TRUE,FALSE)","v":false}]
[null,null,null,null,null,{"$f":"IF(E40=4,TRUE,FALSE)","v":false}]
[null,"Rencana Tindak Lanjut","Entitas yang bertanggung jawab","Durasi waktu"]
[]
[]
[null,"P2.5 - Pembaruan informasi skenario, risiko, kerentanan dan paparan"]
[null,"Pertanyaan","Penjelasan"]
[]
[null,"Jawaban","Bukti Verifikasi"]
[null,null,null,null,null,{"$f":"IF(E51=1,TRUE,FALSE)","v":false}]
[null,null,null,null,null,{"$f":"IF(E51=2,TRUE,FALSE)","v":false}]
[null,null,null,null,null,{"$f":"IF(E51=3,TRUE,FALSE)","v":false}]
[null,null,null,null,null,{"$f":"IF(E51=4,TRUE,FALSE)","v":false}]
[null,"Rencana Tindak Lanjut","Entitas yang bertanggung jawab","Durasi waktu"]

{"sheet":"E03","index":5,"n_rows":44,"n_cols":6,"rows_kept":44,"cut":false,"hidden":false,"merged":[[36,2,36,3],[37,2,37,3],[38,2,38,3],[39,2,42,3],[16,2,16,3],[17,2,20,3],[25,2,25,3],[26,2,26,3],[27,2,27,3],[28,2,31,3],[15,2,15,3],[3,2,3,3],[4,2,4,3],[5,2,5,3],[6,2,9,3],[14,2,14,3]]}
[]
[]
[null,"P3.1 - Pengetahuan tentang Pendekatan untuk Menarik Investasi Baru ke dalam Kota untuk Pengurangan Risiko Bencana"]
[null,"Pertanyaan","Penjelasan"]
[]
[null,"Jawaban","Bukti Verifikasi"]
[null,null,null,null,null,{"$f":"IF(E7=1,TRUE,FALSE)","v":false}]
[null,null,null,null,null,{"$f":"IF(E7=2,TRUE,FALSE)","v":false}]
[null,null,null,null,null,{"$f":"IF(E7=3,TRUE,FALSE)","v":false}]
[null,null,null,null,null,{"$f":"IF(E7=4,TRUE,FALSE)","v":false}]
[null,"Rencana Tindak Lanjut","Entitas yang bertanggung jawab","Durasi waktu"]
[]
[]
[null,"P3.2 - Rencana Keuangan dan Anggaran untuk Ketahanan, termasuk Dana untuk Rencana Kontijensi"]
[null,"Pertanyaan","Penjelasan"]
[]
[null,"Jawaban","Bukti Verifikasi"]
[null,null,null,null,null,{"$f":"IF(E18=1,TRUE,FALSE)","v":false}]
[null,null,null,null,null,{"$f":"IF(E18=2,TRUE,FALSE)","v":false}]
[null,null,null,null,null,{"$f":"IF(E18=3,TRUE,FALSE)","v":false}]
[null,null,null,null,null,{"$f":"IF(E18=4,TRUE,FALSE)","v":false}]
[null,"Rencana Tindak Lanjut","Entitas yang bertanggung jawab","Durasi waktu"]
[]
[]
[null,"P3.3 - Asuransi"]
[null,"Pertanyaan","Penjelasan"]
[]
[null,"Jawaban","Bukti Verifikasi"]
[null,null,null,null,null,{"$f":"IF(E29=1,TRUE,FALSE)","v":false}]
[null,null,null,null,null,{"$f":"IF(E29=2,TRUE,FALSE)","v":false}]
[null,null,null,null,null,{"$f":"IF(E29=3,TRUE,FALSE)","v":false}]
[null,null,null,null,null,{"$f":"IF(E29=4,TRUE,FALSE)","v":false}]
[null,"Rencana Tindak Lanjut","Entitas yang bertanggung jawab","Durasi waktu"]
[]
[]
[null,"P3.4 - Insentif dan pembiayaan untuk dunia usaha, organisasi masyarakat dan masyarakat"]
[null,"Pertanyaan","Penjelasan"]
[]
[null,"Jawaban","Bukti Verifikasi"]
[null,null,null,null,null,{"$f":"IF(E40=1,TRUE,FALSE)","v":false}]
[null,null,null,null,null,{"$f":"IF(E40=2,TRUE,FALSE)","v":false}]
[null,null,null,null,null,{"$f":"IF(E40=3,TRUE,FALSE)","v":false}]
[null,null,null,null,null,{"$f":"IF(E40=4,TRUE,FALSE)","v":false}]
[null,"Rencana Tindak Lanjut","Entitas yang bertanggung jawab","Durasi waktu"]

{"sheet":"E04","index":6,"n_rows":44,"n_cols":6,"rows_kept":44,"cut":false,"hidden":false,"merged":[[36,2,36,3],[37,2,37,3],[38,2,38,3],[39,2,42,3],[16,2,16,3],[17,2,20,3],[25,2,25,3],[26,2,26,3],[27,2,27,3],[28,2,31,3],[15,2,15,3],[3,2,3,3],[4,2,4,3],[5,2,5,3],[6,2,9,3],[14,2,14,3]]}
[]
[]
[null,"P4.1 - Zonasi Penggunaan Ruang"]
[null,"Pertanyaan","Penjelasan"]
[]
[null,"Jawaban","Bukti Verifikasi"]
[null,null,null,null,null,{"$f":"IF(E7=1,TRUE,FALSE)","v":false}]
[null,null,null,null,null,{"$f":"IF(E7=2,TRUE,FALSE)","v":false}]
[null,null,null,null,null,{"$f":"IF(E7=3,TRUE,FALSE)","v":false}]
[null,null,null,null,null,{"$f":"IF(E7=4,TRUE,FALSE)","v":false}]
[null,"Rencana Tindak Lanjut","Entitas yang bertanggung jawab","Durasi waktu"]
[]
[]
[null,"P4.2 - Pengembangan Wilayah Perkotaan Baru"]
[null,"Pertanyaan","Penjelasan"]
[]
[null,"Jawaban","Bukti Verifikasi"]
[null,null,null,null,null,{"$f":"IF(E18=1,TRUE,FALSE)","v":false}]
[null,null,null,null,null,{"$f":"IF(E18=2,TRUE,FALSE)","v":false}]
[null,null,null,null,null,{"$f":"IF(E18=3,TRUE,FALSE)","v":false}]
[null,null,null,null,null,{"$f":"IF(E18=4,TRUE,FALSE)","v":false}]
[null,"Rencana Tindak Lanjut","Entitas yang bertanggung jawab","Durasi waktu"]
[]
[]
[null,"P4.3 - Peraturan dan Standar Bangunan"]
[null,"Pertanyaan","Penjelasan"]
[]
[null,"Jawaban","Bukti Verifikasi"]
[null,null,null,null,null,{"$f":"IF(E29=1,TRUE,FALSE)","v":false}]
[null,null,null,null,null,{"$f":"IF(E29=2,TRUE,FALSE)","v":false}]
[null,null,null,null,null,{"$f":"IF(E29=3,TRUE,FALSE)","v":false}]
[null,null,null,null,null,{"$f":"IF(E29=4,TRUE,FALSE)","v":false}]
[null,"Rencana Tindak Lanjut","Entitas yang bertanggung jawab","Durasi waktu"]
[]
[]
[null,"P4.4 - Penerapan Zonasi untuk Peraturan dan Standar Bangunan"]
[null,"Pertanyaan","Penjelasan"]
[]
[null,"Jawaban","Bukti Verifikasi"]
[null,null,null,null,null,{"$f":"IF(E40=1,TRUE,FALSE)","v":false}]
[null,null,null,null,null,{"$f":"IF(E40=2,TRUE,FALSE)","v":false}]
[null,null,null,null,null,{"$f":"IF(E40=3,TRUE,FALSE)","v":false}]
[null,null,null,null,null,{"$f":"IF(E40=4,TRUE,FALSE)","v":false}]
[null,"Rencana Tindak Lanjut","Entitas yang bertanggung jawab","Durasi waktu"]

{"sheet":"E05","index":7,"n_rows":33,"n_cols":6,"rows_kept":33,"cut":false,"hidden":false,"merged":[[28,2,31,3],[3,2,3,3],[4,2,4,3],[5,2,5,3],[6,2,9,3],[14,2,14,3],[15,2,15,3],[16,2,16,3],[17,2,20,3],[25,2,25,3],[26,2,26,3],[27,2,27,3]]}
[]
[]
[null,"P5.1 - Kesadaran dan Jasa Layanan/Fungsi Ekosistem"]
[null,"Pertanyaan","Penjelasan"]
[]
[null,"Jawaban","Bukti Verifikasi"]
[null,null,null,null,null,{"$f":"IF(E7=1,TRUE,FALSE)","v":false}]
[null,null,null,null,null,{"$f":"IF(E7=2,TRUE,FALSE)","v":false}]
[null,null,null,null,null,{"$f":"IF(E7=3,TRUE,FALSE)","v":false}]
[null,null,null,null,null,{"$f":"IF(E7=4,TRUE,FALSE)","v":false}]
[null,"Rencana Tindak Lanjut","Entitas yang bertanggung jawab","Durasi waktu"]
[]
[]
[null,"P5.2 - Pengintegrasian infrastruktur hijau dan biru ke dalam kebijakan dan proyek kota"]
[null,"Pertanyaan","Penjelasan"]
[]
[null,"Jawaban","Bukti Verifikasi"]
[null,null,null,null,null,{"$f":"IF(E18=1,TRUE,FALSE)","v":false}]
[null,null,null,null,null,{"$f":"IF(E18=2,TRUE,FALSE)","v":false}]
[null,null,null,null,null,{"$f":"IF(E18=3,TRUE,FALSE)","v":false}]
[null,null,null,null,null,{"$f":"IF(E18=4,TRUE,FALSE)","v":false}]
[null,"Rencana Tindak Lanjut","Entitas yang bertanggung jawab","Durasi waktu"]
[]
[]
[null,"P5.3 - Permasalahan Lingkungan Lintas Batas"]
[null,"Pertanyaan","Penjelasan"]
[]
[null,"Jawaban","Bukti Verifikasi"]
[null,null,null,null,null,{"$f":"IF(E29=1,TRUE,FALSE)","v":false}]
[null,null,null,null,null,{"$f":"IF(E29=2,TRUE,FALSE)","v":false}]
[null,null,null,null,null,{"$f":"IF(E29=3,TRUE,FALSE)","v":false}]
[null,null,null,null,null,{"$f":"IF(E29=4,TRUE,FALSE)","v":false}]
[null,"Rencana Tindak Lanjut","Entitas yang bertanggung jawab","Durasi waktu"]

{"sheet":"E06","index":8,"n_rows":66,"n_cols":6,"rows_kept":66,"cut":false,"hidden":false,"merged":[[61,2,64,3],[36,2,36,3],[37,2,37,3],[38,2,38,3],[39,2,42,3],[47,2,47,3],[48,2,48,3],[49,2,49,3],[50,2,53,3],[58,2,58,3],[59,2,59,3],[60,2,60,3],[28,2,31,3],[3,2,3,3],[4,2,4,3],[5,2,5,3],[6,2,9,3],[14,2,14,3],[15,2,15,3],[16,2,16,3],[17,2,20,3],[25,2,25,3],[26,2,26,3],[27,2,27,3]]}
[]
[]
[null,"P6.1 - Keterampilan dan Pengalaman"]
[null,"Pertanyaan","Penjelasan"]
[]
[null,"Jawaban","Bukti Verifikasi"]
[null,null,null,null,null,{"$f":"IF(E7=1,TRUE,FALSE)","v":false}]
[null,null,null,null,null,{"$f":"IF(E7=2,TRUE,FALSE)","v":false}]
[null,null,null,null,null,{"$f":"IF(E7=3,TRUE,FALSE)","v":false}]
[null,null,null,null,null,{"$f":"IF(E7=4,TRUE,FALSE)","v":false}]
[null,"Rencana Tindak Lanjut","Entitas yang bertanggung jawab","Durasi waktu"]
[]
[]
[null,"P6.2 - Pendidikan dan Kesadaran Masyarakat"]
[null,"Pertanyaan","Penjelasan"]
[]
[null,"Jawaban","Bukti Verifikasi"]
[null,null,null,null,null,{"$f":"IF(E18=1,TRUE,FALSE)","v":false}]
[null,null,null,null,null,{"$f":"IF(E18=2,TRUE,FALSE)","v":false}]
[null,null,null,null,null,{"$f":"IF(E18=3,TRUE,FALSE)","v":false}]
[null,null,null,null,null,{"$f":"IF(E18=4,TRUE,FALSE)","v":false}]
[null,"Rencana Tindak Lanjut","Entitas yang bertanggung jawab","Durasi waktu"]
[]
[]
[null,"P6.3 - Pengumpulan, Publikasi, dan Penyebaran Data"]
[null,"Pertanyaan","Penjelasan"]
[]
[null,"Jawaban","Bukti Verifikasi"]
[null,null,null,null,null,{"$f":"IF(E29=1,TRUE,FALSE)","v":false}]
[null,null,null,null,null,{"$f":"IF(E29=2,TRUE,FALSE)","v":false}]
[null,null,null,null,null,{"$f":"IF(E29=3,TRUE,FALSE)","v":false}]
[null,null,null,null,null,{"$f":"IF(E29=4,TRUE,FALSE)","v":false}]
[null,"Rencana Tindak Lanjut","Entitas yang bertanggung jawab","Durasi waktu"]
[]
[]
[null,"P6.4 - Pelaksanaan Pelatihan"]
[null,"Pertanyaan","Penjelasan"]
[]
[null,"Jawaban","Bukti Verifikasi"]
[null,null,null,null,null,{"$f":"IF(E40=1,TRUE,FALSE)","v":false}]
[null,null,null,null,null,{"$f":"IF(E40=2,TRUE,FALSE)","v":false}]
[null,null,null,null,null,{"$f":"IF(E40=3,TRUE,FALSE)","v":false}]
[null,null,null,null,null,{"$f":"IF(E40=4,TRUE,FALSE)","v":false}]
[null,"Rencana Tindak Lanjut","Entitas yang bertanggung jawab","Durasi waktu"]
[]
[]
[null,"P6.5 - Bahasa"]
[null,"Pertanyaan","Penjelasan"]
[]
[null,"Jawaban","Bukti Verifikasi"]
[null,null,null,null,null,{"$f":"IF(E51=1,TRUE,FALSE)","v":false}]
[null,null,null,null,null,{"$f":"IF(E51=2,TRUE,FALSE)","v":false}]
[null,null,null,null,null,{"$f":"IF(E51=3,TRUE,FALSE)","v":false}]
[null,null,null,null,null,{"$f":"IF(E51=4,TRUE,FALSE)","v":false}]
[null,"Rencana Tindak Lanjut","Entitas yang bertanggung jawab","Durasi waktu"]
[]
[]
[null,"P6.6 - Belajar dari Pihak Lain"]
[null,"Pertanyaan","Penjelasan"]
[]
[null,"Jawaban","Bukti Verifikasi"]
[null,null,null,null,null,{"$f":"IF(E62=1,TRUE,FALSE)","v":false}]
[null,null,null,null,null,{"$f":"IF(E62=2,TRUE,FALSE)","v":false}]
[null,null,null,null,null,{"$f":"IF(E62=3,TRUE,FALSE)","v":false}]
[null,null,null,null,null,{"$f":"IF(E62=4,TRUE,FALSE)","v":false}]
[null,"Rencana Tindak Lanjut","Entitas yang bertanggung jawab","Durasi waktu"]

{"sheet":"E07","index":9,"n_rows":44,"n_cols":6,"rows_kept":44,"cut":false,"hidden":false,"merged":[[36,2,36,3],[37,2,37,3],[38,2,38,3],[39,2,42,3],[16,2,16,3],[17,2,20,3],[25,2,25,3],[26,2,26,3],[27,2,27,3],[28,2,31,3],[15,2,15,3],[3,2,3,3],[4,2,4,3],[5,2,5,3],[6,2,9,3],[14,2,14,3]]}
[]
[]
[null,"P7.1 - Organisasi Masyarakat atau Akar Rumput"]
[null,"Pertanyaan","Penjelasan"]
[]
[null,"Jawaban","Bukti Verifikasi"]
[null,null,null,null,null,{"$f":"IF(E7=1,TRUE,FALSE)","v":false}]
[null,null,null,null,null,{"$f":"IF(E7=2,TRUE,FALSE)","v":false}]
[null,null,null,null,null,{"$f":"IF(E7=3,TRUE,FALSE)","v":false}]
[null,null,null,null,null,{"$f":"IF(E7=4,TRUE,FALSE)","v":false}]
[null,"Rencana Tindak Lanjut","Entitas yang bertanggung jawab","Durasi waktu"]
[]
[]
[null,"P7.2 - Jaringan Sosial"]
[null,"Pertanyaan","Penjelasan"]
[]
[null,"Jawaban","Bukti Verifikasi"]
[null,null,null,null,null,{"$f":"IF(E18=1,TRUE,FALSE)","v":false}]
[null,null,null,null,null,{"$f":"IF(E18=2,TRUE,FALSE)","v":false}]
[null,null,null,null,null,{"$f":"IF(E18=3,TRUE,FALSE)","v":false}]
[null,null,null,null,null,{"$f":"IF(E18=4,TRUE,FALSE)","v":false}]
[null,"Rencana Tindak Lanjut","Entitas yang bertanggung jawab","Durasi waktu"]
[]
[]
[null,"P7.3 - Sektor Swasta/Pemilik Usaha"]
[null,"Pertanyaan","Penjelasan"]
[]
[null,"Jawaban","Bukti Verifikasi"]
[null,null,null,null,null,{"$f":"IF(E29=1,TRUE,FALSE)","v":false}]
[null,null,null,null,null,{"$f":"IF(E29=2,TRUE,FALSE)","v":false}]
[null,null,null,null,null,{"$f":"IF(E29=3,TRUE,FALSE)","v":false}]
[null,null,null,null,null,{"$f":"IF(E29=4,TRUE,FALSE)","v":false}]
[null,"Rencana Tindak Lanjut","Entitas yang bertanggung jawab","Durasi waktu"]
[]
[]
[null,"P7.4 - Teknik-Teknik Pelibatan Masyarakat"]
[null,"Pertanyaan","Penjelasan"]
[]
[null,"Jawaban","Bukti Verifikasi"]
[null,null,null,null,null,{"$f":"IF(E40=1,TRUE,FALSE)","v":false}]
[null,null,null,null,null,{"$f":"IF(E40=2,TRUE,FALSE)","v":false}]
[null,null,null,null,null,{"$f":"IF(E40=3,TRUE,FALSE)","v":false}]
[null,null,null,null,null,{"$f":"IF(E40=4,TRUE,FALSE)","v":false}]
[null,"Rencana Tindak Lanjut","Entitas yang bertanggung jawab","Durasi waktu"]

{"sheet":"E08","index":10,"n_rows":99,"n_cols":6,"rows_kept":99,"cut":false,"hidden":false,"merged":[[94,2,97,3],[80,2,80,3],[81,2,81,3],[82,2,82,3],[83,2,86,3],[91,2,91,3],[92,2,92,3],[93,2,93,3],[27,2,27,3],[61,2,64,3],[36,2,36,3],[37,2,37,3],[38,2,38,3],[39,2,42,3],[47,2,47,3],[48,2,48,3],[49,2,49,3],[50,2,53,3],[58,2,58,3],[59,2,59,3],[60,2,60,3],[15,2,15,3],[16,2,16,3],[17,2,20,3],[25,2,25,3],[26,2,26,3],[3,2,3,3],[4,2,4,3],[5,2,5,3],[6,2,9,3],[14,2,14,3],[69,2,69,3],[70,2,70,3],[71,2,71,3],[72,2,75,3],[28,2,31,3]]}
[]
[]
[null,"P8.1 - Infrastruktur Pelindung "]
[null,"Pertanyaan","Penjelasan"]
[]
[null,"Jawaban","Bukti Verifikasi"]
[null,null,null,null,null,{"$f":"IF(E7=1,TRUE,FALSE)","v":false}]
[null,null,null,null,null,{"$f":"IF(E7=2,TRUE,FALSE)","v":false}]
[null,null,null,null,null,{"$f":"IF(E7=3,TRUE,FALSE)","v":false}]
[null,null,null,null,null,{"$f":"IF(E7=4,TRUE,FALSE)","v":false}]
[null,"Rencana Tindak Lanjut","Entitas yang bertanggung jawab","Durasi waktu"]
[]
[]
[null,"P8.2 - Infrastruktur Pelindung"]
[null,"Pertanyaan","Penjelasan"]
[]
[null,"Jawaban"]
[null,null,null,null,null,{"$f":"IF(E18=1,TRUE,FALSE)","v":false}]
[null,null,null,null,null,{"$f":"IF(E18=2,TRUE,FALSE)","v":false}]
[null,null,null,null,null,{"$f":"IF(E18=3,TRUE,FALSE)","v":false}]
[null,null,null,null,null,{"$f":"IF(E18=4,TRUE,FALSE)","v":false}]
[null,"Rencana Tindak Lanjut","Entitas yang bertanggung jawab","Durasi waktu"]
[]
[]
[null,"P8.3 - Air dan Sanitasi"]
[null,"Pertanyaan","Penjelasan"]
[]
[null,"Jawaban","Bukti Verifikasi"]
[null,null,null,null,null,{"$f":"IF(E29=1,TRUE,FALSE)","v":false}]
[null,null,null,null,null,{"$f":"IF(E29=2,TRUE,FALSE)","v":false}]
[null,null,null,null,null,{"$f":"IF(E29=3,TRUE,FALSE)","v":false}]
[null,null,null,null,null,{"$f":"IF(E29=4,TRUE,FALSE)","v":false}]
[null,"Rencana Tindak Lanjut","Entitas yang bertanggung jawab","Durasi waktu"]
[]
[]
[null,"P8.4 - Energi"]
[null,"Pertanyaan","Penjelasan"]
[]
[null,"Jawaban","Bukti Verifikasi"]
[null,null,null,null,null,{"$f":"IF(E40=1,TRUE,FALSE)","v":false}]
[null,null,null,null,null,{"$f":"IF(E40=2,TRUE,FALSE)","v":false}]
[null,null,null,null,null,{"$f":"IF(E40=3,TRUE,FALSE)","v":false}]
[null,null,null,null,null,{"$f":"IF(E40=4,TRUE,FALSE)","v":false}]
[null,"Rencana Tindak Lanjut","Entitas yang bertanggung jawab","Durasi waktu"]
[]
[]
[null,"P8.5 - Transportasi"]
[null,"Pertanyaan","Penjelasan"]
[]
[null,"Jawaban","Bukti Verifikasi"]
[null,null,null,null,null,{"$f":"IF(E51=1,TRUE,FALSE)","v":false}]
[null,null,null,null,null,{"$f":"IF(E51=2,TRUE,FALSE)","v":false}]
[null,null,null,null,null,{"$f":"IF(E51=3,TRUE,FALSE)","v":false}]
[null,null,null,null,null,{"$f":"IF(E51=4,TRUE,FALSE)","v":false}]
[null,"Rencana Tindak Lanjut","Entitas yang bertanggung jawab","Durasi waktu"]
[]
[]
[null,"P8.6 - Telekomunikasi"]
[null,"Pertanyaan","Penjelasan"]
[]
[null,"Jawaban","Bukti Verifikasi"]
[null,null,null,null,null,{"$f":"IF(E62=1,TRUE,FALSE)","v":false}]
[null,null,null,null,null,{"$f":"IF(E62=2,TRUE,FALSE)","v":false}]
[null,null,null,null,null,{"$f":"IF(E62=3,TRUE,FALSE)","v":false}]
[null,null,null,null,null,{"$f":"IF(E62=4,TRUE,FALSE)","v":false}]
[null,"Rencana Tindak Lanjut","Entitas yang bertanggung jawab","Durasi waktu"]
[]
[]
[null,"P8.7 - Layanan Kesehatan"]
[null,"Pertanyaan","Penjelasan"]
[]
[null,"Jawaban","Bukti Verifikasi"]
[null,null,null,null,null,{"$f":"IF(E73=1,TRUE,FALSE)","v":false}]
[null,null,null,null,null,{"$f":"IF(E73=2,TRUE,FALSE)","v":false}]
[null,null,null,null,null,{"$f":"IF(E73=3,TRUE,FALSE)","v":false}]
[null,null,null,null,null,{"$f":"IF(E73=4,TRUE,FALSE)","v":false}]
[null,"Rencana Tindak Lanjut","Entitas yang bertanggung jawab","Durasi waktu"]
[]
[]
[null,"P8.8 - Fasilitas Pendidikan"]
[null,"Pertanyaan","Penjelasan"]
[]
[null,"Jawaban","Bukti Verifikasi"]
[null,null,null,null,null,{"$f":"IF(E84=1,TRUE,FALSE)","v":false}]
[null,null,null,null,null,{"$f":"IF(E84=2,TRUE,FALSE)","v":false}]
[null,null,null,null,null,{"$f":"IF(E84=3,TRUE,FALSE)","v":false}]
[null,null,null,null,null,{"$f":"IF(E84=4,TRUE,FALSE)","v":false}]
[null,"Rencana Tindak Lanjut","Entitas yang bertanggung jawab","Durasi waktu"]
[]
[]
[null,"P8.9 - Aset Reaksi Cepat / Respinden Pertama"]
[null,"Pertanyaan","Penjelasan"]
[]
[null,"Jawaban","Bukti Verifikasi"]
[null,null,null,null,null,{"$f":"IF(E95=1,TRUE,FALSE)","v":false}]
[null,null,null,null,null,{"$f":"IF(E95=2,TRUE,FALSE)","v":false}]
[null,null,null,null,null,{"$f":"IF(E95=3,TRUE,FALSE)","v":false}]
[null,null,null,null,null,{"$f":"IF(E95=4,TRUE,FALSE)","v":false}]
[null,"Rencana Tindak Lanjut","Entitas yang bertanggung jawab","Durasi waktu"]

{"sheet":"E09","index":11,"n_rows":77,"n_cols":6,"rows_kept":77,"cut":false,"hidden":false,"merged":[[3,2,3,3],[4,2,4,3],[5,2,5,3],[6,2,9,3],[14,2,14,3],[15,2,15,3],[16,2,16,3],[17,2,20,3],[25,2,25,3],[26,2,26,3],[27,2,27,3],[28,2,31,3],[36,2,36,3],[37,2,37,3],[38,2,38,3],[39,2,42,3],[47,2,47,3],[48,2,48,3],[49,2,49,3],[50,2,53,3],[70,2,70,3],[71,2,71,3],[72,2,75,3],[58,2,58,3],[59,2,59,3],[60,2,60,3],[61,2,64,3],[69,2,69,3]]}
[]
[]
[null,"P9.1 - Peringatan Dini"]
[null,"Pertanyaan","Penjelasan"]
[]
[null,"Jawaban","Bukti Verifikasi"]
[null,null,null,null,null,{"$f":"IF(E7=1,TRUE,FALSE)","v":false}]
[null,null,null,null,null,{"$f":"IF(E7=2,TRUE,FALSE)","v":false}]
[null,null,null,null,null,{"$f":"IF(E7=3,TRUE,FALSE)","v":false}]
[null,null,null,null,null,{"$f":"IF(E7=4,TRUE,FALSE)","v":false}]
[null,"Rencana Tindak Lanjut","Entitas yang bertanggung jawab","Durasi waktu"]
[]
[]
[null,"P9.2 - Rencana Respon Kejadian Bencana"]
[null,"Pertanyaan","Penjelasan"]
[]
[null,"Jawaban","Bukti Verifikasi"]
[null,null,null,null,null,{"$f":"IF(E18=1,TRUE,FALSE)","v":false}]
[null,null,null,null,null,{"$f":"IF(E18=2,TRUE,FALSE)","v":false}]
[null,null,null,null,null,{"$f":"IF(E18=3,TRUE,FALSE)","v":false}]
[null,null,null,null,null,{"$f":"IF(E18=4,TRUE,FALSE)","v":false}]
[null,"Rencana Tindak Lanjut","Entitas yang bertanggung jawab","Durasi waktu"]
[]
[]
[null,"P9.3 - Kebutuhan Personel"]
[null,"Pertanyaan","Penjelasan"]
[]
[null,"Response","Bukti Verifikasi"]
[null,null,null,null,null,{"$f":"IF(E29=1,TRUE,FALSE)","v":false}]
[null,null,null,null,null,{"$f":"IF(E29=2,TRUE,FALSE)","v":false}]
[null,null,null,null,null,{"$f":"IF(E29=3,TRUE,FALSE)","v":false}]
[null,null,null,null,null,{"$f":"IF(E29=4,TRUE,FALSE)","v":false}]
[null,"Rencana Tindak Lanjut","Entitas yang bertanggung jawab","Durasi waktu"]
[]
[]
[null,"P9.4 - Kebutuhan Peralatan dan Suplai Penanganan Bencana"]
[null,"Pertanyaan","Penjelasan"]
[]
[null,"Jawaban","Bukti Verifikasi"]
[null,null,null,null,null,{"$f":"IF(E40=1,TRUE,FALSE)","v":false}]
[null,null,null,null,null,{"$f":"IF(E40=2,TRUE,FALSE)","v":false}]
[null,null,null,null,null,{"$f":"IF(E40=3,TRUE,FALSE)","v":false}]
[null,null,null,null,null,{"$f":"IF(E40=4,TRUE,FALSE)","v":false}]
[null,"Rencana Tindak Lanjut","Entitas yang bertanggung jawab","Durasi waktu"]
[]
[]
[null,"P9.5 - Makanan, tempat penampungan, bahan pokok, dan suplai bahan bakar"]
[null,"Pertanyaan","Penjelasan"]
[]
[null,"Jawaban","Bukti Verifikasi"]
[null,null,null,null,null,{"$f":"IF(E51=1,TRUE,FALSE)","v":false}]
[null,null,null,null,null,{"$f":"IF(E51=2,TRUE,FALSE)","v":false}]
[null,null,null,null,null,{"$f":"IF(E51=3,TRUE,FALSE)","v":false}]
[null,null,null,null,null,{"$f":"IF(E51=4,TRUE,FALSE)","v":false}]
[null,"Rencana Tindak Lanjut","Entitas yang bertanggung jawab","Durasi waktu"]
[]
[]
[null,"P9.6 - Keterpaduan dan kerjasama antar lembaga"]
[null,"Pertanyaan","Penjelasan"]
[]
[null,"Jawaban","Bukti Verifikasi"]
[null,null,null,null,null,{"$f":"IF(E62=1,TRUE,FALSE)","v":false}]
[null,null,null,null,null,{"$f":"IF(E62=2,TRUE,FALSE)","v":false}]
[null,null,null,null,null,{"$f":"IF(E62=3,TRUE,FALSE)","v":false}]
[null,null,null,null,null,{"$f":"IF(E62=4,TRUE,FALSE)","v":false}]
[null,"Rencana Tindak Lanjut","Entitas yang bertanggung jawab","Durasi waktu"]
[]
[]
[null,"P9.7 - Simulasi/Gladi"]
[null,"Pertanyaan","Penjelasan"]
[]
[null,"Jawaban","Bukti Verifikasi"]
[null,null,null,null,null,{"$f":"IF(E73=1,TRUE,FALSE)","v":false}]
[null,null,null,null,null,{"$f":"IF(E73=2,TRUE,FALSE)","v":false}]
[null,null,null,null,null,{"$f":"IF(E73=3,TRUE,FALSE)","v":false}]
[null,null,null,null,null,{"$f":"IF(E73=4,TRUE,FALSE)","v":false}]
[null,"Rencana Tindak Lanjut","Entitas yang bertanggung jawab","Durasi waktu"]

{"sheet":"E10","index":12,"n_rows":22,"n_cols":6,"rows_kept":22,"cut":false,"hidden":false,"merged":[[15,2,15,3],[16,2,16,3],[17,2,20,3],[3,2,3,3],[4,2,4,3],[5,2,5,3],[6,2,9,3],[14,2,14,3]]}
[]
[]
[null,"P10.1 - Rencana Pemulihan Pasca Bencana (Pra Bencana)"]
[null,"Pertanyaan","Penjelasan"]
[]
[null,"Jawaban","Bukti Verifikasi"]
[null,null,null,null,null,{"$f":"IF(E7=1,TRUE,FALSE)","v":false}]
[null,null,null,null,null,{"$f":"IF(E7=2,TRUE,FALSE)","v":false}]
[null,null,null,null,null,{"$f":"IF(E7=3,TRUE,FALSE)","v":false}]
[null,null,null,null,null,{"$f":"IF(E7=4,TRUE,FALSE)","v":false}]
[null,"Rencana Tindak Lanjut","Entitas yang bertanggung jawab","Durasi waktu"]
[]
[]
[null,"P10.2 - Pelajaran yang Bisa Dipetik/Siklus Pembelajaran"]
[null,"Pertanyaan","Penjelasan"]
[]
[null,"Jawaban","Bukti Verifikasi"]
[null,null,null,null,null,{"$f":"IF(E18=1,TRUE,FALSE)","v":false}]
[null,null,null,null,null,{"$f":"IF(E18=2,TRUE,FALSE)","v":false}]
[null,null,null,null,null,{"$f":"IF(E18=3,TRUE,FALSE)","v":false}]
[null,null,null,null,null,{"$f":"IF(E18=4,TRUE,FALSE)","v":false}]
[null,"Rencana Tindak Lanjut","Entitas yang bertanggung jawab","Durasi waktu"]

{"sheet":"About","index":13,"n_rows":0,"n_cols":0,"rows_kept":0,"cut":false,"hidden":false,"merged":[]}